Cogmind - Beta 16 @@@ ROGUE MODE // 2025.11.04 @ 19:51:34 Player: szymekc Result: Destroyed by Y-45 Defender with Heavy Assault Rifle Performance ------------- Evolutions (0) 0 Regions Visited (4) 800 Robots Destroyed (15) 75 Value Destroyed (387) 387 Prototype IDs (23) 460 Alien Tech Used (0) 0 Bonus (300) 300 TOTAL SCORE: 2022 Bonus ------- Aligned with FarCom 300 Cogmind --------- Core Integrity 0/250 Matter 243/300 Energy 218/250 System Corruption 5% Temperature Cool (9) Movement Hovering (147) Ox1 Location -9/Mines Parts ------- > --- POWER (1) -------- Ion Engine > --- PROPULSION (2) --- Combat Airjet Combat Airjet > --- UTILITY (2) ------ High-capacity Storage Unit > --- WEAPON (2) ------- Hammer > --- INVENTORY (20) --- Light Ion Engine Light Deuterium Engine Improved Aluminum Leg Flight Unit Flight Unit Flight Unit Improved Heat Sink Seismic Detector Modified TNC Improved Light Armor Plating Firepult YOLO Cannon Peak State ------------ > --- POWER ------------ Ion Engine > --- PROPULSION ------- Improved Aluminum Leg Combat Airjet > --- UTILITY ---------- High-capacity Storage Unit > --- WEAPON ----------- Light Assault Rifle Makeshift Shrapnel Gun > --- INVENTORY -------- Light Ion Engine Light Deuterium Engine Combat Airjet Flight Unit Flight Unit Flight Unit Improved Heat Sink Seismic Detector Modified TNC Improved Light Armor Plating Firepult YOLO Cannon Hammer [Rating: 20] Favorites ----------- Power Ion Engine Engine Ion Engine Propulsion Light Treads Treads Light Treads Leg Improved Aluminum Leg Hover Unit Combat Airjet Utility High-capacity Storage Unit Device Structural Scanner Storage High-capacity Storage Unit Weapon Light Assault Rifle Energy Gun Particle Gun Ballistic Gun Light Assault Rifle Special Weapon Mining Laser Impact Weapon Hammer Build | -11 -10 -10 -10 -9 ------- Run | Yrd Mat Min Exi Min Slots Evolved . | . . . . . Power . | . . . . . Propulsion . | . . . . . Utility . | . . . . . Weapon . | . . . . . Parts Attached 22 | 5 5 5 . 7 Power 4 | 1 1 2 . . Engine 4 | 1 1 2 . . Core . | . . . . . Reactor . | . . . . . Propulsion 7 | 2 . 1 . 4 Treads 4 | 2 . 1 . 1 Leg 1 | . . . . 1 Wheel . | . . . . . Hover 2 | . . . . 2 Flight . | . . . . . Utility 3 | . 3 . . . Device 2 | . 2 . . . Storage 1 | . 1 . . . Processor . | . . . . . Hackware . | . . . . . Protection . | . . . . . Artifact . | . . . . . Weapon 8 | 2 1 2 . 3 Energy Gun 1 | . . . . 1 Energy Cannon . | . . . . . Ballistic Gun 5 | 2 . 2 . 1 Ballistic Cannon . | . . . . . Launcher . | . . . . . Special Weapon 1 | . 1 . . . Impact Weapon 1 | . . . . 1 Slashing Weapon . | . . . . . Piercing Weapon . | . . . . . Special Melee Weapon . | . . . . . Unidentified Prototypes . | . . . . . Parts Lost 14 | . 1 3 . 10 Power 2 | . 1 . . 1 Propulsion 4 | . . 1 . 3 Utility 1 | . . . . 1 Weapon 7 | . . 2 . 5 Highest Loss Streak 6 | . 1 2 . 6 To Critical Strikes 1 | . . . . 1 Average Backups 9 | . 1 9 15 16 Power 2 | . . 2 3 2 Propulsion 2 | . . 2 5 5 Utility 2 | . . 2 3 4 Weapon 2 | . . 1 3 4 Tool/Special . | . . . . . Unused Backups 10 | . . . . 10 Power 1 | . . . . 1 Propulsion 3 | . . . . 3 Utility 4 | . . . . 4 Weapon 2 | . . . . 2 Tool/Special . | . . . . . Average Slot Usage (%) 95 | . 90 100 100 78 Engine 14 | . 14 14 14 14 Treads 27 | . 28 28 28 20 Device 12 | . 15 14 14 . Storage 11 | . 3 14 14 14 Ballistic Gun 26 | . 27 26 28 26 Special Weapon 1 | . . 1 . . Peak Build Rating 20 | 5 7 10 14 20 Average Rating 9 | 4 6 8 11 15 On Entrance 7 | . 5 7 10 14 Avg Prop Armor Cover (%) . | . . . . . Naked Turns . | . . . . . Heaviest Build 49 | 8 49 49 49 49 Greatest Support 43 | 40 40 40 40 43 Greatest Overweight (x) 2 | . 1 1 1 2 Average Overweight (x) . | . . 1 1 1 Largest Inventory Capacity 20 | 5 20 20 20 20 Average Capacity 16 | 5 8 20 20 20 Most Carried 19 | 1 4 14 19 19 Average Carried 10 | . 1 9 16 18 Final Capacity 20 | 5 20 20 20 20 Final Carried 19 | 1 4 14 19 14 Class Distribution -------------------- 100% | Mutant Dominant Class ---------------- Mutant | -10/Materials Mutant | -10/Mines Mutant | -10/Exiles Mutant | -9/Mines Resources | -11 -10 -10 -10 -9 ----------- Run | Yrd Mat Min Exi Min Matter Collected 609 | 250 113 185 . 61 Remotely . | . . . . . Salvage Created 522 | . 197 208 . 117 Parts 28 | . 15 7 . 6 Haulers Intercepted . | . . . . . Recyclers Shooed . | . . . . . Parts Field Recycled . | . . . . . Retrieved Matter . | . . . . . Parts Self-Destructed . | . . . . . Prevented . | . . . . . Parts Restored . | . . . . . Kills | -11 -10 -10 -10 -9 ------- Run | Yrd Mat Min Exi Min Combat Hostiles Destroyed 14 | . 7 4 . 3 Guns 13 | . 6 4 . 3 AOE 1 | . 1 . . . Classes Destroyed 5 | . 2 1 . 2 Recycler 1 | . . 1 . . Swarmer 6 | . 4 2 . . Grunt 6 | . 3 2 . 1 Brawler 1 | . . . . 1 Sentry 1 | . . . . 1 Best Kill Streak 6 | . 6 2 . 2 Combat Bots Only 6 | . 6 2 . 2 Max Kills in Single Turn 1 | . 1 1 . 1 Gunslinging . | . . . . . Exploded 1 | . 1 . . . Melee . | . . . . . Uniques/NPCs Destroyed . | . . . . . Combat | -11 -10 -10 -10 -9 -------- Run | Yrd Mat Min Exi Min Hostile Shots Fired 154 | . 51 57 . 46 Missed 33 | . 17 9 . 7 Hits 121 | . 34 48 . 39 Melee 4 | . . . . 4 Projectile 117 | . 34 48 . 35 Critical Strikes 3 | . . 1 . 2 Damage Taken 1516 | . 403 528 . 585 Core 254 | . 74 58 . 122 Absorbed by Shields . | . . . . . Core Remaining (%) 100 | 100 . . . . Volleys Fired 65 | . 19 30 . 16 Largest 2 | . 2 2 . 2 Hottest 100 | . 100 40 . 85 Shots Fired 112 | . 36 45 . 31 Gun 110 | . 34 45 . 31 Cannon . | . . . . . Launcher . | . . . . . Special 2 | . 2 . . . Kinetic 107 | . 34 45 . 28 Thermal 5 | . 2 . . 3 Explosive . | . . . . . Electromagnetic . | . . . . . Robot Hit Streak 10 | . 8 4 . 10 Robot Miss Streak 3 | . 3 3 . 2 Penetration Max . | . . . . . Secondary Targets 3 | . 2 . . 1 Max Gunslinging Chain 1 | . 1 . . 1 Shots Hit Robots 78 | . 23 28 . 27 Core Hits 24 | . 9 8 . 7 Critical Kills . | . . . . . Critical Parts Destroyed . | . . . . . Critical Strikes . | . . . . . Melee Attacks . | . . . . . Impact . | . . . . . Slashing . | . . . . . Piercing . | . . . . . Sneak Attacks . | . . . . . Combat Hostiles . | . . . . . Follow-up Attacks . | . . . . . Damage Inflicted 933 | . 232 333 . 368 Guns 913 | . 231 328 . 354 Cannons . | . . . . . Explosions . | . . . . . Melee . | . . . . . Ramming 20 | . 1 5 . 14 Kinetic 883 | . 231 328 . 324 Thermal 30 | . . . . 30 Explosive . | . . . . . Electromagnetic . | . . . . . Impact . | . . . . . Slashing . | . . . . . Piercing . | . . . . . Highest Corruption 5 | . . . . 5 Average Corruption 5 | . . . . 5 Corruption Purged . | . . . . . Corruption Blocked . | . . . . . Effects 6 | . . . . 6 Message Errors 2 | . . . . 2 Heat Flow Errors 1 | . . . . 1 Energy Discharges 1 | . . . . 1 Misfires 1 | . . . . 1 Weapon Failures 1 | . . . . 1 Overload Shots . | . . . . . Overflow Damage . | . . . . . Projectiles . | . . . . . Explosions . | . . . . . Melee . | . . . . . Knockbacks 1 | . . 1 . . Impact 1 | . . 1 . . Kinetic . | . . . . . Secondary . | . . . . . Self-Inflicted Damage . | . . . . . Shots . | . . . . . Rammed 4 | . 1 1 . 2 Targets Rammed 5 | . 1 2 . 2 Kicked . | . . . . . Crushed 1 | . . 1 . . Highest Temperature 153 | . 20 34 . 153 Average Temperature 25 | . 8 15 . 41 Received Heat Transfer 528 | . 105 228 . 195 Siege Activations . | . . . . . Martial Activations . | . . . . . Shielding Activations . | . . . . . Robots Disrupted . | . . . . . Combat Hostiles . | . . . . . Robots Corrupted . | . . . . . Combat Hostiles . | . . . . . Parts Fried . | . . . . . Impact Corruptions . | . . . . . Robots Melted . | . . . . . Combat Hostiles . | . . . . . Parts Melted . | . . . . . Heat Transferred 74 | . . . . 74 Parts Sabotaged . | . . . . . Parts Stolen . | . . . . . Parts Stripped . | . . . . . Power Chain Reactions . | . . . . . Alert | -11 -10 -10 -10 -9 ------- Run | Yrd Mat Min Exi Min Maximum Alert Level . | . . . . . Low Security (%) 100 | 100 100 100 . 100 Level 1 . | . . . . . Level 2 . | . . . . . Level 3 . | . . . . . Level 4 . | . . . . . Level 5 . | . . . . . High Security . | . . . . . Max Security . | . . . . . Peak Influence 110 | . 110 50 . 30 Initial 15 | . . 15 . . Average 10 | . 29 4 . 5 Influence Increases 402 | . 182 105 . 115 Destroy 0b10 Robot/C 280 | . 140 80 . 60 Destroy 0b10 Robot/NC 5 | . . 5 . . Destroy Leader 50 | . 20 20 . 10 Successful Hack 20 | . 20 . . . Disable Machine 15 | . . . . 15 Destroy Structure 2 | . 2 . . . Lose Combat Pursuer 30 | . . . . 30 Influence Decreases 402 | . 141 146 . 115 Entered New Map 26 | . . 26 . . Time Decay 311 | . 131 110 . 70 Lost Part 65 | . 10 10 . 45 Squads Dispatched 1 | . 1 . . . Investigation . | . . . . . Extermination . | . . . . . Reinforcement 1 | . 1 . . . Assault . | . . . . . Garrison . | . . . . . Intercept . | . . . . . Searches Triggered . | . . . . . Construction Impeded . | . . . . . Haulers Reinforced . | . . . . . Active Scanning Responses . | . . . . . Cargo Convoy Interrupts . | . . . . . Stealth | -11 -10 -10 -10 -9 --------- Run | Yrd Mat Min Exi Min Distress Signals 2 | . 1 . . 1 Communications Jammed . | . . . . . Distress Signals . | . . . . . Times Spotted 26 | . 17 5 . 4 Peak Tracking Total 6 | . 6 3 . 2 Tactical Retreats 1 | . . . . 1 Traps | -11 -10 -10 -10 -9 ------- Run | Yrd Mat Min Exi Min Traps Triggered . | . . . . . Indirectly . | . . . . . Trap Hack Attempts . | . . . . . Triggered . | . . . . . Disarmed . | . . . . . Reprogrammed . | . . . . . Reused . | . . . . . Traps Extracted . | . . . . . Installed . | . . . . . Triggered . | . . . . . Machines | -11 -10 -10 -10 -9 ---------- Run | Yrd Mat Min Exi Min Machines Disabled 1 | . . . . 1 Max in Single Turn 1 | . . . . 1 Machines Repaired . | . . . . . Machines Dismantled . | . . . . . Machines Sabotaged . | . . . . . Overloaded Fab Kills . | . . . . . Hacking | -11 -10 -10 -10 -9 --------- Run | Yrd Mat Min Exi Min Machines Accessed 6 | . 4 . 2 . Terminals 3 | . 3 . . . Fabricators . | . . . . . Repair Stations . | . . . . . Recycling Units 1 | . 1 . . . Scanalyzers . | . . . . . Garrison Access . | . . . . . Total Hacks 22 | . 19 . 3 . Successful 13 | . 10 . 3 . Failed 9 | . 9 . . . Catastrophic . | . . . . . Database Lockouts . | . . . . . Manual 15 | . 14 . 1 . Terminals 16 | . 16 . . . Fabricators . | . . . . . Repair Stations . | . . . . . Recycling Units 3 | . 3 . . . Scanalyzers . | . . . . . Garrison Access . | . . . . . Terminal Hacks 6 | . 3 . 3 . Record 2 | . . . 2 . Locate Traps 1 | . 1 . . . Hauler Manifests 1 | . 1 . . . Zone Layout 1 | . 1 . . . Proto ID Catalog 1 | . . . 1 . Fabricator Hacks . | . . . . . Repair Station Hacks . | . . . . . Recycling Unit Hacks 1 | . 1 . . . Retrieve Components 1 | . 1 . . . Scanalyzer . | . . . . . Garrison Access Hacks . | . . . . . Unauthorized Hacks 6 | . 6 . . . Terminals 4 | . 4 . . . Botnet 1 | . 1 . . . Skim 3 | . 3 . . . Fabricators . | . . . . . Repair Stations . | . . . . . Recycling Units 2 | . 2 . . . Reject 1 | . 1 . . . Mask 1 | . 1 . . . Scanalyzers . | . . . . . Garrison Access . | . . . . . Data Cores Recovered . | . . . . . Used . | . . . . . Hacking Detections 3 | . 3 . . . Full Trace Events . | . . . . . Feedback Events . | . . . . . Feedback Blocked . | . . . . . Robot Schematics Acquired . | . . . . . Robots Built . | . . . . . Authchips . | . . . . . Time . | . . . . . Total Robot Build Rating . | . . . . . Part Schematics Acquired . | . . . . . Parts Built . | . . . . . Authchips . | . . . . . Time . | . . . . . Total Part Build Rating . | . . . . . Part Studies Acquired . | . . . . . Parts Repaired . | . . . . . Time . | . . . . . Parts Recycled . | . . . . . Recycled Matter . | . . . . . Retrieved Matter . | . . . . . Retrieved Components . | . . . . . Parts Scanalyzed . | . . . . . Part Schematics Acquired . | . . . . . Parts Damaged . | . . . . . Bothacking | -11 -10 -10 -10 -9 ------------ Run | Yrd Mat Min Exi Min Used RIF Installer . | . . . . . Robots Hacked . | . . . . . Non-combat . | . . . . . Combat . | . . . . . Robot Hacks Applied . | . . . . . Relay Couplers Released . | . . . . . Fabnet Peak Effective % . | . . . . . Robots Rewired . | . . . . . Allies Hacked . | . . . . . Hacks Repelled . | . . . . . Allies | -11 -10 -10 -10 -9 -------- Run | Yrd Mat Min Exi Min Total Allies . | . . . . . Largest Group . | . . . . . Highest-Rated Group . | . . . . . Highest-Rated Ally . | . . . . . Total Orders . | . . . . . Ally Attacks . | . . . . . Total Damage . | . . . . . Kills . | . . . . . Allies Corrupted . | . . . . . Allies Melted . | . . . . . Intel | -11 -10 -10 -10 -9 ------- Run | Yrd Mat Min Exi Min Active Infowar (turns) 2349 | . 448 1306 589 6 Terrain 212 | . 212 . . . Structural 2349 | . 448 1306 589 6 Robot Analysis Total . | . . . . . Derelict Logs Recovered 2 | . . 1 . 1 Drone Launches . | . . . . . Drone Recoveries . | . . . . . Exploration | -11 -10 -10 -10 -9 ------------- Run | Yrd Mat Min Exi Min Turns Passed 2982 | 158 575 1306 589 354 Spaces Moved 1244 | 96 289 505 245 109 Core 3 | 3 . . . . Treads 1241 | 93 289 505 245 109 Legs . | . . . . . Wheels . | . . . . . Hover . | . . . . . Flight . | . . . . . Fastest Speed 50 | 50 160 240 240 240 Average Speed 220 | 156 174 240 240 266 Slowest Speed 320 | 160 240 240 240 320 Overloaded Moves . | . . . . . Propulsion Burnouts . | . . . . . Robots Hopped . | . . . . . Potential Cave-ins . | . . . . . Cave-ins Triggered . | . . . . . Exploration Rate (%) 49 | 7 59 87 60 34 Regions Visited 4 Branch Regions 3 Pre-discovered Areas 2 | . . 1 1 . Known Exits Taken . | . . . . . Unknown Exits Taken 4 | 1 1 1 1 . Scrap Searched 4 | . . 3 . 1 Spaces Dug 2 | . 2 . . . Terrain Destroyed 2 | . 2 . . . Melee . | . . . . . Projectile 2 | . 2 . . . AOE . | . . . . . Terrain Rammed . | . . . . . Walls Destroyed . | . . . . . Machines Disabled . | . . . . . Actions | -11 -10 -10 -10 -9 --------- Run | Yrd Mat Min Exi Min Total 1361 | 101 320 554 247 139 Wait 1 | . . 1 . . Move 1240 | 95 288 504 244 109 Hop . | . . . . . Pick Up 21 | 1 4 11 3 2 Fast Attach 8 | 5 2 . . 1 Attach 11 | . 1 3 . 7 Detach . | . . . . . Swap 10 | . 5 3 . 2 Drop . | . . . . . Fire 65 | . 19 30 . 16 Melee . | . . . . . Ram . | . . . . . Kick . | . . . . . Crush 5 | . 1 2 . 2 Escape Stasis . | . . . . . Rewire . | . . . . . Trap . | . . . . . Miscellaneous . | . . . . . Route ------- -11/Scrapyard -10/Materials (discovered 4 exits: [*Mat] / [*Min x2] / [Sub]) -10/Mines (discovered 4 exits: [*Mat x2] / *Exi / [Sub]) -10/Exiles -9/Mines History --------- Turn | Location | Event 6 | -11/Scrapyard | Discovered new exit (range 15) 159 | -11/Scrapyard | Entered Materials 204 | -10/Materials | Discovered new exit (range 11) 307 | -10/Materials | Build established: Mutant 343 | -10/Materials | Discovered new exit (range 4) 348 | -10/Materials | Discovered new exit (range 11) 687 | -10/Materials | Discovered new exit (range 8) 734 | -10/Materials | Entered Mines 735 | -10/Mines | Assembled infested the area 815 | -10/Mines | Discovered new exit (range 10) 935 | -10/Mines | Core integrity fell below 50% 1010 | -10/Mines | Learned location of Recycling (-9) 1072 | -10/Mines | Discovered new exit (range 14) 1262 | -10/Mines | Found a hidden stash of uninstalled traps 1374 | -10/Mines | Discovered new exit (range 3) 1516 | -10/Mines | A weapon hastily lodged in a ceiling crevice suddenly fell to the ground 2031 | -10/Mines | Discovered new exit (range 5) 2040 | -10/Mines | Entered Exiles 2098 | -10/Exiles | Met 8R-AWN 2141 | -10/Exiles | Met EX-HEX 2220 | -10/Exiles | Met EX-BIN 2254 | -10/Exiles | Aligned with FarCom system 2256 | -10/Exiles | Given EX-Vault access code 2321 | -10/Exiles | Opened EX-Vault 2336 | -10/Exiles | Found Firepult 2341 | -10/Exiles | Found Modified TNC 2347 | -10/Exiles | Found YOLO Cannon 2394 | -10/Exiles | Warned to stay clear of 0b10 Research branches 2473 | -10/Exiles | Met EX-DEC 2483 | -10/Exiles | Learned location of Zion (-7) 2603 | -10/Exiles | Discovered new exit (range 14) 2629 | -10/Exiles | Stole three prototypes: Modified TNC, Firepult, YOLO Cannon 2629 | -10/Exiles | Entered Mines 2685 | -9/Mines | Lost 4 parts (1p1n1u1w) 2972 | -9/Mines | Core integrity fell below 20% 2983 | -9/Mines | Destroyed by Y-45 Defender with Heavy Assault Rifle Last Messages --------------- 02826_ Found Maul. 02826_ Found Imp. Targeting Computer. 02826_ Found 50 Matter. 02827_ Acquired 8 matter. 02831_ Acquired derelict log, extracted data. Data stored: Factory entrances (x1). 02843_ Acquired Imp. Aluminum Leg. 02891_ System corrupted: Heat flow error (+173). 02906_ KXV73KVTO8GA6D0M7863F 02907_ K-01 Serf collects debris. 02960_ Lgt. Treads destroyed. 02962_ Imp. Treads destroyed. 02965_ System corrupted: Particle Gun failed to cycle. 02968_ Critical hit (Burn: +37). 02971_ Particle Gun destroyed. 02974_ Lgt. Assault Rifle destroyed. 02976_ Y-45 Defender destroyed. 02976_ Switching to secondary target: Y-45 Defender. 02977_ Lgt. Assault Rifle destroyed. 02980_ Mak. Shrapnel Gun destroyed. Map ----- +----------------------------------------------------+ | ??????????????# #???## "" ## ##??????? | | ??????????????# #???## ### """* ## ##??????? | | ??????????????# ?????# ### "%" ##??????????? | | ??????????????? ???### ### " ##??????????? | | ???????????????# #???# ############??????????? | | ??????????# #### ##### ##############??????????? | | ??????????# #???????????????????????? | | ??????????###### #######???????????????????????? | | ?????????####?## #?????????????????????????????? | | ????????## ### ##????????????????????????????? | | ????????# ! ##???????????????????????????? | | ????????## ##??????????????????????????? | | ??####???# #### ######?????????????????????? | | ??# ??# #??### ##????????????????????? | | ??? ??# #????## #????????????????????? | | ??# """ ?# #?????# #????????????????????? | | ??# """ ?#!#????## #????????????????????? | | ??# """ #%#????# [ #????????????????????? | | ??# #/#????# ####????????????????????? | | ??# #????# ########?????????????????? | | ??######## #????## ###" "##????????????????? | | ?????????# #?????## ###!! ]!#????????????????? | | ?????????# #??????####?#!! !!#????????????????? | | ?????????# #????????????# % #?????????????????? | | ?????????# #???????????###/Y###????????????????? | | ?????##### #??????????## @! #????????????????? | | ?????# #??????##### # ????????? | | ?????# #####??????# ????????? | | ?????# #??????????# #### ???????? | | ?????# #??????????# ### ##??????????????? | | ?????# #??????????# #?# #???????????????? | | ?????# #??????##### #? #??????????????? | | ?????# #??????# ## #??????????????? | | ?????# #??????# ###### t #??????????????? | | ?????# #??##### #????# #??????????????? | | ###### #### #???? ##??????????????? | | #???? #####???????????????? | | ###### #### #####???# #####???????????????????? | | ?????# #??# #???????###????????????????????????? | | ?????# #?? ??????????????????????????????????? | | ????? ? ?????????????????????????????????? | | ????? ????????????????????????????????? | | ????? ##????????????????????????????????? | | ????? ##?????????????????????????????????? | | ????? ##??????????????????????????????????? | | ????? ? ????????????????????????????????????? | | ?????# ? #????????????????????????????????????? | | ?????## #?????????????????????????????????????? | | ???????##??????????????????????????????????????? | | ???????????????????????????????????????????????? | +----------------------------------------------------+ Best States ------------- Heat Dissipation 25 Energy Generation 10 Energy Capacity 250 Matter Stores 300 Matter Capacity 300 Sight Range 16 Terrain Scan Range 14 Terrain Scan Density 10 Evasion (%) 40 Recoil Reduction 2 Item Schematics ----------------- None Robot Schematics ------------------ None Fabricated ------------ Nothing Repaired ---------- Nothing Studied --------- None Alien Tech Used ----------------- None Achievements -------------- None Challenges ------------ None Game ------ Seed FieldthrustPortableAutogun Manual? 0 Play Time 00:12:13 Cumulative 968.2 hours Start 2025.11.04 @ 18:49:01 End 2025.11.04 @ 19:51:34 Sessions 1 Manual Loads 0 Difficulty Rogue Special Mode None Game No. 302 Rogue 300 Adventurer 2 Explorer 0 Win Type - Total 67 Types 19/15/15/1/1/1/11/1/1/2 Lore% 97 Gallery% 94 Achievement% 80 Wizard Run 0 Options --------- Layout 0 ASCII 0 Keyboard 1 Movement Numpad Keybinds 0 Fullscreen 1 Font 24/Smallcaps Map View 76x50 Zoom Use 0% Tactical HUD 1 Map Filters NONE Filters NONE Steam 1 RUN: 9ffe9745-3c83-4dfa-8386-02f1126ab215